[Event "Titled Tuesday Blitz March 21 Late 2023"]
[White "Gonzalez, Francisco Silva"]
[Black "Zamorano, Jorge"]
[WhiteFideId "1512285"]
[BlackFideId "173770"]
[WhiteElo "2074"]
[BlackElo "2331"]
[Result "0-1"]
[Round "04"]
[TimeControl "180+2"]
[Date "2023.03.21"]
[WhiteClock "0:00:59"]
[BlackClock "0:01:11"]

1. d4 {[%clk 0:02:52]}  Nf6 {[%clk 0:02:58]} 2. c4 {[%clk 0:02:52]}  e6 {[%clk 0:02:59]} 3. Nc3 {[%clk 0:02:52]}  Bb4 {[%clk 0:02:59]} 4. a3 {[%clk 0:02:52]}  Bxc3+ {[%clk 0:02:59]} 5. bxc3 {[%clk 0:02:51]}  Nc6 {[%clk 0:02:59]} 6. e3 {[%clk 0:02:52]}  b6 {[%clk 0:02:57]} 7. Bd3 {[%clk 0:02:52]}  Ba6 {[%clk 0:02:56]} 8. e4 {[%clk 0:02:52]}  O-O {[%clk 0:02:57]} 9. Nf3 {[%clk 0:02:52]}  Ne8 {[%clk 0:02:39]} 10. e5 {[%clk 0:02:50]}  f5 {[%clk 0:02:39]} 11. Bg5 {[%clk 0:02:47]}  Qc8 {[%clk 0:02:40]} 12. O-O {[%clk 0:02:46]}  Na5 {[%clk 0:02:36]} 13. Qe2 {[%clk 0:02:45]}  h6 {[%clk 0:02:36]} 14. Be7 {[%clk 0:02:41]}  Rf7 {[%clk 0:02:35]} 15. Bb4 {[%clk 0:02:41]}  Nb7 {[%clk 0:02:18]} 16. a4 {[%clk 0:02:40]}  c5 {[%clk 0:02:19]} 17. Ba3 {[%clk 0:02:38]}  d5 {[%clk 0:02:07]} 18. cxd5 {[%clk 0:02:36]}  Bxd3 {[%clk 0:02:07]} 19. Qxd3 {[%clk 0:02:35]}  c4 {[%clk 0:02:02]} 20. Qc2 {[%clk 0:02:30]}  exd5 {[%clk 0:02:02]} 21. Nh4 {[%clk 0:02:27]}  Qe6 {[%clk 0:01:58]} 22. f4 {[%clk 0:02:27]}  g6 {[%clk 0:01:46]} 23. g4 {[%clk 0:02:25]}  Ng7 {[%clk 0:01:47]} 24. h3 {[%clk 0:02:13]}  Kh7 {[%clk 0:01:47]} 25. Qg2 {[%clk 0:02:10]}  Rg8 {[%clk 0:01:41]} 26. Kh2 {[%clk 0:02:10]}  Nd8 {[%clk 0:01:36]} 27. Rg1 {[%clk 0:02:03]}  fxg4 {[%clk 0:01:34]} 28. Qxg4 {[%clk 0:01:58]}  Qxg4 {[%clk 0:01:33]} 29. Rxg4 {[%clk 0:01:57]}  Nf5 {[%clk 0:01:33]} 30. Rag1 {[%clk 0:01:37]}  Nxh4 {[%clk 0:01:30]} 31. Rxh4 {[%clk 0:01:35]}  Ne6 {[%clk 0:01:31]} 32. Bc1 {[%clk 0:01:34]}  h5 {[%clk 0:01:17]} 33. Rg5 {[%clk 0:01:28]}  Nxg5 {[%clk 0:01:16]} 34. fxg5 {[%clk 0:01:24]}  Rf3 {[%clk 0:01:14]} 35. Rf4 {[%clk 0:01:20]}  Rxf4 {[%clk 0:01:12]} 36. Bxf4 {[%clk 0:01:20]}  Kg7 {[%clk 0:01:12]} 37. e6 {[%clk 0:01:19]}  Re8 {[%clk 0:01:11]} 38. Be5+ {[%clk 0:01:19]}  Kg8 {[%clk 0:01:11]} 39. Kg3 {[%clk 0:01:13]}  Rxe6 {[%clk 0:01:11]} 40. Kf4 {[%clk 0:01:13]}  Kf7 {[%clk 0:01:11]} 41. h4 {[%clk 0:01:12]}  Re8 {[%clk 0:01:09]} 42. Kf3 {[%clk 0:01:10]}  Ke6 {[%clk 0:01:09]} 43. Kf4 {[%clk 0:01:09]}  Rf8+ {[%clk 0:01:10]} 44. Ke3 {[%clk 0:01:09]}  Rf1 {[%clk 0:01:10]} 45. Bb8 {[%clk 0:01:09]}  a6 {[%clk 0:01:09]} 46. Ba7 {[%clk 0:01:07]}  Rd1 {[%clk 0:01:08]} 47. Bxb6 {[%clk 0:01:04]}  Rd3+ {[%clk 0:01:09]} 48. Kf4 {[%clk 0:01:04]}  Rxc3 {[%clk 0:01:10]} 49. a5 {[%clk 0:01:03]}  Rd3 {[%clk 0:01:09]} 50. Bc5 {[%clk 0:01:02]}  c3 {[%clk 0:01:10]} 51. Ba3 {[%clk 0:00:59]}  c2 {[%clk 0:01:11]} 0-1


[Site "https://www.chess.com"]

[Event "Titled Tuesday Blitz March 21 Late 2023"]
[White "Jovic, Stanoje"]
[Black "Gunduz, Umut Erdem"]
[WhiteFideId "905020"]
[BlackFideId "6381383"]
[WhiteElo "2236"]
[BlackElo "2182"]
[Result "1-0"]
[Round "04"]
[TimeControl "180+2"]
[Date "2023.03.21"]
[WhiteClock "0:00:34"]
[BlackClock "0:00:03"]

1. c4 {[%clk 0:03:00]}  c5 {[%clk 0:02:58]} 2. g3 {[%clk 0:03:00]}  g6 {[%clk 0:02:58]} 3. Bg2 {[%clk 0:03:01]}  Bg7 {[%clk 0:02:58]} 4. Nc3 {[%clk 0:03:01]}  Nc6 {[%clk 0:02:58]} 5. Nf3 {[%clk 0:03:01]}  Nh6 {[%clk 0:02:59]} 6. h4 {[%clk 0:03:01]}  d6 {[%clk 0:02:58]} 7. h5 {[%clk 0:02:59]}  Bg4 {[%clk 0:02:49]} 8. d3 {[%clk 0:02:54]}  Bxh5 {[%clk 0:02:41]} 9. Bxh6 {[%clk 0:02:48]}  Bxh6 {[%clk 0:02:35]} 10. g4 {[%clk 0:02:48]}  Bxg4 {[%clk 0:02:17]} 11. Rxh6 {[%clk 0:02:48]}  e6 {[%clk 0:02:13]} 12. Qd2 {[%clk 0:02:38]}  Bh5 {[%clk 0:01:54]} 13. O-O-O {[%clk 0:02:35]}  Ne7 {[%clk 0:01:38]} 14. Rh1 {[%clk 0:02:29]}  Nf5 {[%clk 0:01:37]} 15. R6xh5 {[%clk 0:02:28]}  gxh5 {[%clk 0:01:38]} 16. Rxh5 {[%clk 0:02:28]}  Qe7 {[%clk 0:01:34]} 17. Rxf5 {[%clk 0:02:20]}  exf5 {[%clk 0:01:32]} 18. Nd5 {[%clk 0:02:20]}  Qd8 {[%clk 0:01:23]} 19. Qh6 {[%clk 0:02:12]}  Kd7 {[%clk 0:01:10]} 20. Bh3 {[%clk 0:02:06]}  Re8 {[%clk 0:00:55]} 21. Bxf5+ {[%clk 0:02:04]}  Kc6 {[%clk 0:00:55]} 22. e4 {[%clk 0:01:57]}  b5 {[%clk 0:00:37]} 23. cxb5+ {[%clk 0:01:46]}  Kxb5 {[%clk 0:00:38]} 24. Qxh7 {[%clk 0:01:41]}  Rf8 {[%clk 0:00:24]} 25. Qg7 {[%clk 0:01:22]}  Rb8 {[%clk 0:00:22]} 26. Nd2 {[%clk 0:01:20]}  Rb7 {[%clk 0:00:16]} 27. Nc4 {[%clk 0:01:17]}  Ka6 {[%clk 0:00:11]} 28. Qh6 {[%clk 0:01:04]}  Rb6 {[%clk 0:00:10]} 29. a4 {[%clk 0:00:54]}  Rh8 {[%clk 0:00:09]} 30. Qg7 {[%clk 0:00:50]}  Rg8 {[%clk 0:00:09]} 31. Qxf7 {[%clk 0:00:48]}  Qg5+ {[%clk 0:00:07]} 32. Kc2 {[%clk 0:00:46]}  Qg7 {[%clk 0:00:04]} 33. Qxg7 {[%clk 0:00:42]}  Rxg7 {[%clk 0:00:05]} 34. f4 {[%clk 0:00:39]}  Rg2+ {[%clk 0:00:03]} 35. Kc3 {[%clk 0:00:39]}  Rb8 {[%clk 0:00:03]} 36. Ne7 {[%clk 0:00:37]}  Rh8 {[%clk 0:00:03]} 37. Nxd6 {[%clk 0:00:35]}  Rhh2 {[%clk 0:00:02]} 38. Nc4 {[%clk 0:00:35]}  Rc2+ {[%clk 0:00:02]} 39. Kb3 {[%clk 0:00:35]}  Rcf2 {[%clk 0:00:03]} 40. Nd5 {[%clk 0:00:35]}  Kb7 {[%clk 0:00:04]} 41. e5 {[%clk 0:00:35]}  Kc6 {[%clk 0:00:05]} 42. Be4 {[%clk 0:00:34]}  Kd7 {[%clk 0:00:05]} 43. f5 {[%clk 0:00:34]}  Rh3 {[%clk 0:00:05]} 44. e6+ {[%clk 0:00:34]}  Kd8 {[%clk 0:00:04]} 45. f6 {[%clk 0:00:34]}  Re2 {[%clk 0:00:04]} 46. e7+ {[%clk 0:00:34]}  Kd7 {[%clk 0:00:04]} 47. Bf5+ {[%clk 0:00:34]}  Ke8 {[%clk 0:00:03]} 48. Bxh3 {[%clk 0:00:34]} 1-0


[Site "https://www.chess.com"]

[Event "Titled Tuesday Blitz March 21 Late 2023"]
[White "Kretchetov, Alexandre"]
[Black "Baskakov, Egor"]
[WhiteFideId "4124588"]
[BlackFideId "24197866"]
[WhiteElo "2523"]
[BlackElo "2212"]
[Result "0-1"]
[Round "04"]
[TimeControl "180+2"]
[Date "2023.03.21"]
[WhiteClock "0:01:19"]
[BlackClock "0:01:53"]

1. d4 {[%clk 0:03:00]}  Nf6 {[%clk 0:02:59]} 2. c4 {[%clk 0:03:00]}  e6 {[%clk 0:03:00]} 3. Nc3 {[%clk 0:03:00]}  d5 {[%clk 0:03:01]} 4. cxd5 {[%clk 0:02:59]}  Nxd5 {[%clk 0:03:02]} 5. e4 {[%clk 0:02:57]}  Nxc3 {[%clk 0:03:02]} 6. bxc3 {[%clk 0:02:57]}  b6 {[%clk 0:03:03]} 7. Bb5+ {[%clk 0:02:54]}  c6 {[%clk 0:03:03]} 8. Bd3 {[%clk 0:02:54]}  Bb7 {[%clk 0:03:04]} 9. Nf3 {[%clk 0:02:53]}  Nd7 {[%clk 0:03:04]} 10. O-O {[%clk 0:02:53]}  Be7 {[%clk 0:03:05]} 11. Qe2 {[%clk 0:02:52]}  O-O {[%clk 0:03:02]} 12. a4 {[%clk 0:02:52]}  c5 {[%clk 0:03:01]} 13. a5 {[%clk 0:02:51]}  cxd4 {[%clk 0:02:59]} 14. cxd4 {[%clk 0:02:50]}  bxa5 {[%clk 0:02:59]} 15. Bd2 {[%clk 0:02:46]}  Bb4 {[%clk 0:03:00]} 16. Rfb1 {[%clk 0:02:45]}  Qe7 {[%clk 0:02:59]} 17. Qe1 {[%clk 0:02:33]}  Nf6 {[%clk 0:02:58]} 18. e5 {[%clk 0:02:05]}  Nd5 {[%clk 0:02:53]} 19. Qe4 {[%clk 0:02:03]}  g6 {[%clk 0:02:50]} 20. Bh6 {[%clk 0:02:01]}  Rfc8 {[%clk 0:02:47]} 21. Qg4 {[%clk 0:02:00]}  f5 {[%clk 0:02:34]} 22. exf6 {[%clk 0:01:57]}  Nxf6 {[%clk 0:02:34]} 23. Qh4 {[%clk 0:01:51]}  Bxf3 {[%clk 0:02:30]} 24. gxf3 {[%clk 0:01:51]}  Nd5 {[%clk 0:02:30]} 25. Bg5 {[%clk 0:01:51]}  Qf7 {[%clk 0:02:26]} 26. Be4 {[%clk 0:01:47]}  Rc7 {[%clk 0:02:14]} 27. Qg3 {[%clk 0:01:45]}  Rac8 {[%clk 0:02:04]} 28. h4 {[%clk 0:01:44]}  Nc3 {[%clk 0:02:04]} 29. h5 {[%clk 0:01:31]}  Nxe4 {[%clk 0:02:03]} 30. fxe4 {[%clk 0:01:30]}  Rc3 {[%clk 0:02:02]} 31. Qg4 {[%clk 0:01:25]}  gxh5 {[%clk 0:01:54]} 32. Qxh5 {[%clk 0:01:19]}  Qxh5 {[%clk 0:01:53]} 0-1


[Site "https://www.chess.com"]

[Event "Titled Tuesday Blitz March 21 Late 2023"]
[White "Korchmar, Vasiliy"]
[Black "Kaplan, Avi Harrison"]
[WhiteFideId "24131750"]
[BlackFideId "30934559"]
[WhiteElo "2370"]
[BlackElo "1983"]
[Result "1-0"]
[Round "04"]
[TimeControl "180+2"]
[Date "2023.03.21"]
[WhiteClock "0:00:08"]
[BlackClock "0:00:02"]

1. e4 {[%clk 0:02:54]}  Nc6 {[%clk 0:02:55]} 2. Nf3 {[%clk 0:02:54]}  g6 {[%clk 0:02:54]} 3. d4 {[%clk 0:02:54]}  Bg7 {[%clk 0:02:54]} 4. c3 {[%clk 0:02:53]}  d6 {[%clk 0:02:53]} 5. Bd3 {[%clk 0:02:53]}  e5 {[%clk 0:02:52]} 6. d5 {[%clk 0:02:51]}  Nce7 {[%clk 0:02:46]} 7. c4 {[%clk 0:02:51]}  f5 {[%clk 0:02:46]} 8. Nc3 {[%clk 0:02:48]}  Nf6 {[%clk 0:02:44]} 9. Ng5 {[%clk 0:02:40]}  h6 {[%clk 0:02:35]} 10. Ne6 {[%clk 0:02:39]}  Bxe6 {[%clk 0:02:34]} 11. dxe6 {[%clk 0:02:40]}  O-O {[%clk 0:02:26]} 12. exf5 {[%clk 0:02:40]}  gxf5 {[%clk 0:02:26]} 13. O-O {[%clk 0:02:23]}  c6 {[%clk 0:02:11]} 14. Bc2 {[%clk 0:02:13]}  d5 {[%clk 0:02:01]} 15. cxd5 {[%clk 0:02:14]}  cxd5 {[%clk 0:02:01]} 16. f4 {[%clk 0:02:12]}  Ng4 {[%clk 0:01:54]} 17. Kh1 {[%clk 0:02:04]}  d4 {[%clk 0:01:42]} 18. Ne2 {[%clk 0:01:57]}  e4 {[%clk 0:01:42]} 19. Ng3 {[%clk 0:01:50]}  d3 {[%clk 0:01:28]} 20. Bb3 {[%clk 0:01:50]}  e3 {[%clk 0:01:27]} 21. Qf3 {[%clk 0:01:37]}  d2 {[%clk 0:01:19]} 22. Bxd2 {[%clk 0:01:38]}  exd2 {[%clk 0:01:19]} 23. Nxf5 {[%clk 0:01:38]}  Rxf5 {[%clk 0:01:06]} 24. Qxg4 {[%clk 0:01:38]}  Kh8 {[%clk 0:00:58]} 25. Rad1 {[%clk 0:01:38]}  Qd4 {[%clk 0:00:51]} 26. Rf3 {[%clk 0:01:15]}  Raf8 {[%clk 0:00:45]} 27. g3 {[%clk 0:01:06]}  Qe4 {[%clk 0:00:40]} 28. Kg2 {[%clk 0:00:57]}  Qe2+ {[%clk 0:00:38]} 29. Kh3 {[%clk 0:00:57]}  h5 {[%clk 0:00:38]} 30. Qh4 {[%clk 0:00:31]}  Qxf3 {[%clk 0:00:36]} 31. Qxe7 {[%clk 0:00:30]}  Rxf4 {[%clk 0:00:24]} 32. Rxd2 {[%clk 0:00:29]}  Qg4+ {[%clk 0:00:14]} 33. Kg2 {[%clk 0:00:29]}  Re4 {[%clk 0:00:14]} 34. Bd1 {[%clk 0:00:17]}  Qxe6 {[%clk 0:00:13]} 35. Qg5 {[%clk 0:00:15]}  Re5 {[%clk 0:00:09]} 36. Qh4 {[%clk 0:00:13]}  Qc6+ {[%clk 0:00:08]} 37. Kh3 {[%clk 0:00:11]}  Bf6 {[%clk 0:00:06]} 38. Qb4 {[%clk 0:00:07]}  Qe6+ {[%clk 0:00:06]} 39. Kg2 {[%clk 0:00:07]}  Rg8 {[%clk 0:00:06]} 40. Bb3 {[%clk 0:00:06]}  Qc6+ {[%clk 0:00:05]} 41. Kh3 {[%clk 0:00:06]}  Rg7 {[%clk 0:00:03]} 42. Rd6 {[%clk 0:00:07]}  Qc8+ {[%clk 0:00:02]} 43. Kg2 {[%clk 0:00:07]}  Re2+ {[%clk 0:00:03]} 44. Kf1 {[%clk 0:00:06]}  Re8 {[%clk 0:00:02]} 45. Rxf6 {[%clk 0:00:07]}  Qd8 {[%clk 0:00:02]} 46. Rh6+ {[%clk 0:00:07]}  Rh7 {[%clk 0:00:02]} 47. Qc3+ {[%clk 0:00:07]}  Qd4 {[%clk 0:00:01]} 48. Qxd4+ {[%clk 0:00:08]}  Re5 {[%clk 0:00:02]} 49. Qxe5# {[%clk 0:00:08]} 1-0


[Site "https://www.chess.com"]

[Event "Titled Tuesday Blitz March 21 Late 2023"]
[White "Girsh, Daniel"]
[Black "Popov, Mikhail"]
[WhiteFideId "30949190"]
[BlackFideId "4146182"]
[WhiteElo "2075"]
[BlackElo "2270"]
[Result "0-1"]
[Round "04"]
[TimeControl "180+2"]
[Date "2023.03.21"]
[WhiteClock "0:00:20"]
[BlackClock "0:00:07"]

1. e4 {[%clk 0:03:00]}  e6 {[%clk 0:03:00]} 2. d4 {[%clk 0:03:00]}  d5 {[%clk 0:03:00]} 3. Nc3 {[%clk 0:03:01]}  Nf6 {[%clk 0:03:00]} 4. e5 {[%clk 0:03:01]}  Nfd7 {[%clk 0:03:01]} 5. f4 {[%clk 0:03:01]}  c5 {[%clk 0:03:01]} 6. Nf3 {[%clk 0:03:02]}  Nc6 {[%clk 0:03:02]} 7. Be3 {[%clk 0:03:03]}  a6 {[%clk 0:03:02]} 8. Qd2 {[%clk 0:03:03]}  b5 {[%clk 0:03:03]} 9. dxc5 {[%clk 0:03:03]}  Bxc5 {[%clk 0:03:01]} 10. Bd3 {[%clk 0:03:04]}  Qb6 {[%clk 0:03:00]} 11. Bf2 {[%clk 0:03:04]}  O-O {[%clk 0:02:54]} 12. O-O {[%clk 0:02:56]}  f6 {[%clk 0:02:54]} 13. exf6 {[%clk 0:02:54]}  Nxf6 {[%clk 0:02:55]} 14. Kh1 {[%clk 0:02:50]}  Bxf2 {[%clk 0:02:43]} 15. Rxf2 {[%clk 0:02:49]}  Bd7 {[%clk 0:02:40]} 16. Re1 {[%clk 0:02:48]}  Rae8 {[%clk 0:02:34]} 17. Rfe2 {[%clk 0:02:42]}  Nh5 {[%clk 0:02:09]} 18. g3 {[%clk 0:02:33]}  Nf6 {[%clk 0:02:09]} 19. Ng5 {[%clk 0:02:29]}  Nd4 {[%clk 0:01:59]} 20. Rg2 {[%clk 0:02:13]}  h6 {[%clk 0:01:57]} 21. Bg6 {[%clk 0:01:46]}  hxg5 {[%clk 0:01:51]} 22. fxg5 {[%clk 0:01:44]}  Nf3 {[%clk 0:01:46]} 23. Qe3 {[%clk 0:01:38]}  Qxe3 {[%clk 0:01:38]} 24. Rxe3 {[%clk 0:01:37]}  Nxg5 {[%clk 0:01:30]} 25. Bxe8 {[%clk 0:01:36]}  Rxe8 {[%clk 0:01:30]} 26. h4 {[%clk 0:01:33]}  Nge4 {[%clk 0:01:27]} 27. Nxe4 {[%clk 0:01:26]}  Nxe4 {[%clk 0:01:28]} 28. Kh2 {[%clk 0:01:24]}  Rf8 {[%clk 0:01:28]} 29. c3 {[%clk 0:01:23]}  e5 {[%clk 0:01:13]} 30. Rd3 {[%clk 0:01:22]}  Be6 {[%clk 0:01:12]} 31. Re2 {[%clk 0:01:20]}  Rf1 {[%clk 0:00:59]} 32. Kg2 {[%clk 0:01:17]}  Rb1 {[%clk 0:00:55]} 33. a3 {[%clk 0:01:10]}  Bg4 {[%clk 0:00:42]} 34. Ree3 {[%clk 0:00:35]}  Rxb2+ {[%clk 0:00:41]} 35. Kg1 {[%clk 0:00:35]}  Be6 {[%clk 0:00:37]} 36. g4 {[%clk 0:00:35]}  Nd2 {[%clk 0:00:20]} 37. Rxe5 {[%clk 0:00:33]}  Bf7 {[%clk 0:00:17]} 38. g5 {[%clk 0:00:32]}  Nc4 {[%clk 0:00:17]} 39. Re7 {[%clk 0:00:30]}  Bg6 {[%clk 0:00:15]} 40. Rxd5 {[%clk 0:00:28]}  Nd2 {[%clk 0:00:12]} 41. Rdd7 {[%clk 0:00:27]}  Nf3+ {[%clk 0:00:11]} 42. Kf1 {[%clk 0:00:27]}  Bf5 {[%clk 0:00:08]} 43. Rxg7+ {[%clk 0:00:27]}  Kh8 {[%clk 0:00:07]} 44. Rdf7 {[%clk 0:00:20]}  Bh3# {[%clk 0:00:07]} 0-1


[Site "https://www.chess.com"]

[Event "Titled Tuesday Blitz March 21 Late 2023"]
[White "Mazurkiewicz, Michal"]
[Black "Mihajlov, Sebastian"]
[WhiteFideId "1124943"]
[BlackFideId "1512110"]
[WhiteElo "2054"]
[BlackElo "2464"]
[Result "1-0"]
[Round "04"]
[TimeControl "180+2"]
[Date "2023.03.21"]
[WhiteClock "0:00:08"]
[BlackClock "0:00:18"]

1. e4 {[%clk 0:03:00]}  e6 {[%clk 0:02:53]} 2. d3 {[%clk 0:03:00]}  d5 {[%clk 0:02:54]} 3. Nd2 {[%clk 0:03:00]}  c5 {[%clk 0:02:54]} 4. Ngf3 {[%clk 0:03:01]}  Nc6 {[%clk 0:02:55]} 5. g3 {[%clk 0:03:01]}  dxe4 {[%clk 0:02:55]} 6. dxe4 {[%clk 0:03:02]}  e5 {[%clk 0:02:55]} 7. Bg2 {[%clk 0:03:02]}  f6 {[%clk 0:02:56]} 8. O-O {[%clk 0:03:01]}  Be6 {[%clk 0:02:57]} 9. c3 {[%clk 0:03:02]}  Qd7 {[%clk 0:02:57]} 10. Re1 {[%clk 0:03:01]}  Bd6 {[%clk 0:02:57]} 11. Qe2 {[%clk 0:02:59]}  Nge7 {[%clk 0:02:57]} 12. Nc4 {[%clk 0:02:59]}  Bc7 {[%clk 0:02:55]} 13. Rd1 {[%clk 0:02:59]}  Bxc4 {[%clk 0:02:47]} 14. Rxd7 {[%clk 0:02:52]}  Bxe2 {[%clk 0:02:47]} 15. Rxc7 {[%clk 0:02:51]}  Rb8 {[%clk 0:02:34]} 16. Be3 {[%clk 0:02:14]}  b6 {[%clk 0:02:26]} 17. Re1 {[%clk 0:01:15]}  Bxf3 {[%clk 0:02:26]} 18. Bxf3 {[%clk 0:01:16]}  Kd8 {[%clk 0:02:27]} 19. Rxe7 {[%clk 0:01:12]}  Kxe7 {[%clk 0:02:28]} 20. Bg4 {[%clk 0:01:03]}  Rhd8 {[%clk 0:02:22]} 21. f4 {[%clk 0:01:03]}  Rd6 {[%clk 0:02:12]} 22. Be2 {[%clk 0:00:53]}  Rbd8 {[%clk 0:02:09]} 23. Bb5 {[%clk 0:00:52]}  Rd1 {[%clk 0:02:04]} 24. Kf2 {[%clk 0:00:45]}  Rxe1 {[%clk 0:02:04]} 25. Kxe1 {[%clk 0:00:46]}  Kd6 {[%clk 0:02:01]} 26. a4 {[%clk 0:00:39]}  exf4 {[%clk 0:02:01]} 27. gxf4 {[%clk 0:00:38]}  Re8 {[%clk 0:02:00]} 28. Bd3 {[%clk 0:00:29]}  h6 {[%clk 0:01:55]} 29. Kf2 {[%clk 0:00:27]}  g5 {[%clk 0:01:53]} 30. e5+ {[%clk 0:00:19]}  fxe5 {[%clk 0:01:52]} 31. fxg5 {[%clk 0:00:20]}  hxg5 {[%clk 0:01:53]} 32. Bxg5 {[%clk 0:00:21]}  e4 {[%clk 0:01:46]} 33. Bf4+ {[%clk 0:00:21]}  Kd7 {[%clk 0:01:26]} 34. Bb5 {[%clk 0:00:22]}  Rg8 {[%clk 0:01:09]} 35. Ke3 {[%clk 0:00:20]}  Rg2 {[%clk 0:01:06]} 36. Kxe4 {[%clk 0:00:20]}  a6 {[%clk 0:00:58]} 37. Bxa6 {[%clk 0:00:15]}  Ne7 {[%clk 0:00:29]} 38. b4 {[%clk 0:00:13]}  Ng6 {[%clk 0:00:26]} 39. Bb5+ {[%clk 0:00:12]}  Kd8 {[%clk 0:00:24]} 40. Bg3 {[%clk 0:00:10]}  cxb4 {[%clk 0:00:21]} 41. cxb4 {[%clk 0:00:11]}  Rb2 {[%clk 0:00:21]} 42. Kd5 {[%clk 0:00:11]}  Rxb4 {[%clk 0:00:18]} 43. Kc6 {[%clk 0:00:11]}  Ne7+ {[%clk 0:00:17]} 44. Kxb6 {[%clk 0:00:11]}  Rb2 {[%clk 0:00:17]} 45. Bh4 {[%clk 0:00:07]}  Rxh2 {[%clk 0:00:16]} 46. Bxe7+ {[%clk 0:00:08]}  Kxe7 {[%clk 0:00:17]} 47. a5 {[%clk 0:00:08]}  Kd8 {[%clk 0:00:17]} 48. a6 {[%clk 0:00:07]}  Kc8 {[%clk 0:00:18]} 49. a7 {[%clk 0:00:08]} 1-0


[Site "https://www.chess.com"]

[Event "Titled Tuesday Blitz March 21 Late 2023"]
[White "Di Berardino, Diego Rafael"]
[Black "Guzman Moneo, Alberto"]
[WhiteFideId "2105446"]
[BlackFideId "2209616"]
[WhiteElo "2432"]
[BlackElo "2157"]
[Result "0-1"]
[Round "04"]
[TimeControl "180+2"]
[Date "2023.03.21"]
[WhiteClock "0:00:03"]
[BlackClock "0:00:20"]

1. d4 {[%clk 0:03:00]}  Nf6 {[%clk 0:02:59]} 2. Nf3 {[%clk 0:03:01]}  c5 {[%clk 0:02:59]} 3. d5 {[%clk 0:02:58]}  b5 {[%clk 0:02:59]} 4. Bg5 {[%clk 0:02:58]}  d6 {[%clk 0:02:55]} 5. Bxf6 {[%clk 0:02:45]}  exf6 {[%clk 0:02:56]} 6. e4 {[%clk 0:02:45]}  a6 {[%clk 0:02:55]} 7. a4 {[%clk 0:02:45]}  b4 {[%clk 0:02:56]} 8. Nbd2 {[%clk 0:02:45]}  f5 {[%clk 0:02:51]} 9. Bd3 {[%clk 0:02:40]}  fxe4 {[%clk 0:02:50]} 10. Nxe4 {[%clk 0:02:38]}  Be7 {[%clk 0:02:50]} 11. O-O {[%clk 0:02:24]}  O-O {[%clk 0:02:50]} 12. Nfd2 {[%clk 0:02:13]}  Nd7 {[%clk 0:02:33]} 13. Nc4 {[%clk 0:02:01]}  Nb6 {[%clk 0:02:30]} 14. Nxb6 {[%clk 0:01:56]}  Qxb6 {[%clk 0:02:30]} 15. a5 {[%clk 0:01:57]}  Qc7 {[%clk 0:02:25]} 16. c4 {[%clk 0:01:41]}  f5 {[%clk 0:02:16]} 17. Nd2 {[%clk 0:01:39]}  Bf6 {[%clk 0:02:14]} 18. Qc2 {[%clk 0:01:38]}  g6 {[%clk 0:02:08]} 19. Rfe1 {[%clk 0:01:23]}  Qg7 {[%clk 0:02:05]} 20. Rab1 {[%clk 0:01:20]}  Bd7 {[%clk 0:02:03]} 21. Re2 {[%clk 0:01:18]}  Rae8 {[%clk 0:02:01]} 22. b3 {[%clk 0:01:14]}  Rxe2 {[%clk 0:01:56]} 23. Bxe2 {[%clk 0:01:15]}  Re8 {[%clk 0:01:55]} 24. Kf1 {[%clk 0:01:12]}  Bc3 {[%clk 0:01:43]} 25. Nf3 {[%clk 0:01:10]}  Qe7 {[%clk 0:01:30]} 26. Rd1 {[%clk 0:01:06]}  Qd8 {[%clk 0:01:28]} 27. Qa2 {[%clk 0:01:03]}  Kg7 {[%clk 0:01:21]} 28. g3 {[%clk 0:01:03]}  Qf6 {[%clk 0:01:19]} 29. h4 {[%clk 0:01:02]}  h6 {[%clk 0:01:19]} 30. Rd3 {[%clk 0:00:58]}  g5 {[%clk 0:01:15]} 31. Qc2 {[%clk 0:00:51]}  g4 {[%clk 0:01:09]} 32. Nh2 {[%clk 0:00:38]}  h5 {[%clk 0:01:04]} 33. Qc1 {[%clk 0:00:30]}  Be5 {[%clk 0:00:58]} 34. Re3 {[%clk 0:00:29]}  f4 {[%clk 0:00:53]} 35. Rxe5 {[%clk 0:00:06]}  Rxe5 {[%clk 0:00:47]} 36. gxf4 {[%clk 0:00:06]}  Rf5 {[%clk 0:00:43]} 37. Kg1 {[%clk 0:00:05]}  Rxf4 {[%clk 0:00:43]} 38. Qe3 {[%clk 0:00:05]}  Qe5 {[%clk 0:00:33]} 39. Qd2 {[%clk 0:00:02]}  Bf5 {[%clk 0:00:28]} 40. Nf1 {[%clk 0:00:02]}  Be4 {[%clk 0:00:24]} 41. Ng3 {[%clk 0:00:03]}  Bg6 {[%clk 0:00:21]} 42. Qxf4 {[%clk 0:00:03]}  Qxf4 {[%clk 0:00:20]} 0-1


[Site "https://www.chess.com"]